[Event "*** SCC Grand Prix: Titled Tuesday Blitz"]
[Site "Chess.com"]
[Date "2020.08.25"]
[Round "8"]
[White "jacky72"]
[Black "Manukyan_Artak"]
[Result "1-0"]
[WhiteElo "2532"]
[BlackElo "2327"]
[TimeControl "180+1"]
[EndTime "11:34:35 PDT"]
[Termination "jacky72 won by resignation"]

1. e4 {[%clk 0:03:00.9]} 1... c6 {[%clk 0:02:59.7]} 2. c4 {[%clk 0:03:00.5]}
2... e5 {[%clk 0:02:58.9]} 3. Nc3 {[%clk 0:03:01.2]} 3... Bc5 {[%clk 0:02:57.2]}
4. Nf3 {[%clk 0:03:01.5]} 4... d6 {[%clk 0:02:49.5]} 5. d4 {[%clk 0:03:00.8]}
5... exd4 {[%clk 0:02:49]} 6. Nxd4 {[%clk 0:03:01.7]} 6... Nf6 {[%clk
0:02:45.3]} 7. Be2 {[%clk 0:03:02]} 7... O-O {[%clk 0:02:42.6]} 8. O-O {[%clk
0:03:02.5]} 8... Re8 {[%clk 0:02:42.6]} 9. f3 {[%clk 0:03:02.8]} 9... Nbd7
{[%clk 0:02:41.4]} 10. Be3 {[%clk 0:03:02.9]} 10... Ne5 {[%clk 0:02:41.1]} 11.
Kh1 {[%clk 0:03:02.6]} 11... a5 {[%clk 0:02:32.4]} 12. Qc2 {[%clk 0:03:02.7]}
12... Qe7 {[%clk 0:02:22.4]} 13. Rad1 {[%clk 0:03:02.5]} 13... Be6 {[%clk
0:02:18.1]} 14. Bg1 {[%clk 0:03:01.7]} 14... Bxc4 {[%clk 0:02:14.8]} 15. Nf5
{[%clk 0:03:01.9]} 15... Qf8 {[%clk 0:02:13.4]} 16. Bxc5 {[%clk 0:02:56.1]}
16... dxc5 {[%clk 0:02:10.2]} 17. Bxc4 {[%clk 0:02:56.5]} 17... Nxc4 {[%clk
0:02:10.1]} 18. Na4 {[%clk 0:02:57.4]} 18... b5 {[%clk 0:02:06.3]} 19. b3 {[%clk
0:02:56]} 19... bxa4 {[%clk 0:02:01.4]} 20. Qxc4 {[%clk 0:02:55.6]} 20... axb3
{[%clk 0:01:58]} 21. axb3 {[%clk 0:02:56.5]} 21... Reb8 {[%clk 0:01:55.3]} 22.
Ra1 {[%clk 0:02:55.7]} 22... Rb4 {[%clk 0:01:53.8]} 23. Qc3 {[%clk 0:02:56]}
23... g6 {[%clk 0:01:46.3]} 24. Qxf6 {[%clk 0:02:50.7]} 24... gxf5 {[%clk
0:01:43]} 25. exf5 {[%clk 0:02:50.6]} 25... Rxb3 {[%clk 0:01:38.3]} 26. Qxc6
{[%clk 0:02:50.1]} 26... Rc8 {[%clk 0:01:28.2]} 27. Qd5 {[%clk 0:02:47.2]} 27...
c4 {[%clk 0:01:13.4]} 28. f6 {[%clk 0:02:46.6]} 28... Kh8 {[%clk 0:01:10.1]} 29.
Rxa5 {[%clk 0:02:44.5]} 29... Rd3 {[%clk 0:01:05.5]} 30. Qh5 {[%clk 0:02:43.9]}
30... Rd6 {[%clk 0:00:54.8]} 31. Qh4 {[%clk 0:02:29.8]} 31... c3 {[%clk
0:00:40.8]} 32. Rh5 {[%clk 0:02:29.6]} 32... Qg8 {[%clk 0:00:38]} 33. Rg5 {[%clk
0:02:30]} 33... c2 {[%clk 0:00:15]} 34. Rxg8+ {[%clk 0:02:28.9]} 34... Rxg8
{[%clk 0:00:14.4]} 35. Qf4 {[%clk 0:02:27.5]} 35... Rd1 {[%clk 0:00:13.5]} 36.
Kg1 {[%clk 0:02:28]} 36... Rgd8 {[%clk 0:00:12.8]} 37. Kf2 {[%clk 0:02:15.2]}
37... Rxf1+ {[%clk 0:00:11.2]} 38. Kxf1 {[%clk 0:02:16.1]} 38... Rd1+ {[%clk
0:00:10.9]} 39. Kf2 {[%clk 0:02:17]} 39... c1=Q {[%clk 0:00:04]} 40. Qb8+ {[%clk
0:02:16.9]} 1-0

[Event "*** SCC Grand Prix: Titled Tuesday Blitz"]
[Site "Chess.com"]
[Date "2020.08.25"]
[Round "8"]
[White "FMJoseHerrera"]
[Black "Dr_crypt"]
[Result "0-1"]
[WhiteElo "2499"]
[BlackElo "2402"]
[TimeControl "180+1"]
[EndTime "11:34:43 PDT"]
[Termination "Dr_crypt won by resignation"]

1. Nf3 {[%clk 0:03:00.9]} 1... Nf6 {[%clk 0:02:57.4]} 2. g3 {[%clk 0:02:58.3]}
2... g6 {[%clk 0:02:57.3]} 3. Bg2 {[%clk 0:02:58.8]} 3... Bg7 {[%clk 0:02:58.2]}
4. d3 {[%clk 0:02:59.2]} 4... O-O {[%clk 0:02:58.5]} 5. Nc3 {[%clk 0:02:59.7]}
5... d5 {[%clk 0:02:58.7]} 6. h4 {[%clk 0:03:00.1]} 6... Bg4 {[%clk 0:02:57.9]}
7. Bg5 {[%clk 0:02:59.2]} 7... c6 {[%clk 0:02:56.3]} 8. Qd2 {[%clk 0:02:58.7]}
8... Re8 {[%clk 0:02:52.6]} 9. Bh6 {[%clk 0:02:55.7]} 9... Bh8 {[%clk
0:02:51.1]} 10. O-O-O {[%clk 0:02:53.7]} 10... Nbd7 {[%clk 0:02:49.6]} 11. h5
{[%clk 0:02:52.9]} 11... Bxh5 {[%clk 0:02:45.9]} 12. Ng5 {[%clk 0:02:41.7]}
12... Qa5 {[%clk 0:02:12.7]} 13. d4 {[%clk 0:02:27.7]} 13... e5 {[%clk
0:02:04.1]} 14. dxe5 {[%clk 0:02:18.9]} 14... Nxe5 {[%clk 0:02:03.7]} 15. f3
{[%clk 0:02:18.8]} 15... Nc4 {[%clk 0:02:01.2]} 16. Qf4 {[%clk 0:01:31.2]} 16...
Rxe2 {[%clk 0:01:52.9]} 17. a3 {[%clk 0:00:59.8]} 17... Rxg2 {[%clk 0:01:47.2]}
18. g4 {[%clk 0:00:59.1]} 18... Nxa3 {[%clk 0:01:40.8]} 19. Rd2 {[%clk
0:00:50.5]} 19... Rxd2 {[%clk 0:01:36.5]} 20. Qxd2 {[%clk 0:00:51.4]} 20... Nc4
{[%clk 0:01:35.5]} 21. Qf4 {[%clk 0:00:51.3]} 21... Qa1+ {[%clk 0:01:34.4]} 22.
Nb1 {[%clk 0:00:51.8]} 22... Qxb2+ {[%clk 0:01:34.2]} 23. Kd1 {[%clk 0:00:52.7]}
23... Qxb1+ {[%clk 0:01:31.7]} 24. Qc1 {[%clk 0:00:52.3]} 24... Qxc1+ {[%clk
0:01:12.6]} 25. Kxc1 {[%clk 0:00:53.2]} 25... Bxg4 {[%clk 0:01:12.7]} 26. fxg4
{[%clk 0:00:52.9]} 26... Nxg4 {[%clk 0:01:12.7]} 27. Nf3 {[%clk 0:00:53.4]}
27... Nxh6 {[%clk 0:01:10.1]} 28. Rxh6 {[%clk 0:00:54.3]} 28... Re8 {[%clk
0:01:09]} 29. Rh1 {[%clk 0:00:51]} 29... h5 {[%clk 0:01:08.7]} 30. Rxh5 {[%clk
0:00:48.6]} 30... gxh5 {[%clk 0:01:08.3]} 0-1

[Event "*** SCC Grand Prix: Titled Tuesday Blitz"]
[Site "Chess.com"]
[Date "2020.08.25"]
[Round "8"]
[White "RusPakhom"]
[Black "fianchettoer"]
[Result "0-1"]
[WhiteElo "2278"]
[BlackElo "2431"]
[TimeControl "180+1"]
[EndTime "11:34:48 PDT"]
[Termination "fianchettoer won by checkmate"]

1. e4 {[%clk 0:03:00.4]} 1... c6 {[%clk 0:02:59.9]} 2. d4 {[%clk 0:02:59.9]}
2... d5 {[%clk 0:03:00.8]} 3. exd5 {[%clk 0:03:00.8]} 3... cxd5 {[%clk
0:03:00.9]} 4. c4 {[%clk 0:03:01.7]} 4... Nf6 {[%clk 0:03:01.6]} 5. Nc3 {[%clk
0:03:01.3]} 5... e6 {[%clk 0:03:01.9]} 6. Nf3 {[%clk 0:03:00.7]} 6... Bb4 {[%clk
0:03:02]} 7. cxd5 {[%clk 0:02:58.2]} 7... Nxd5 {[%clk 0:03:02.9]} 8. Qc2 {[%clk
0:02:58.3]} 8... O-O {[%clk 0:02:59.8]} 9. Bd3 {[%clk 0:02:57.9]} 9... Nf6
{[%clk 0:03:00.1]} 10. O-O {[%clk 0:02:57.2]} 10... Nc6 {[%clk 0:02:57.7]} 11.
Rd1 {[%clk 0:02:55.6]} 11... Be7 {[%clk 0:02:56]} 12. a3 {[%clk 0:02:49.9]}
12... Bd7 {[%clk 0:02:51.7]} 13. Qe2 {[%clk 0:02:49.5]} 13... Rc8 {[%clk
0:02:49.4]} 14. Ne4 {[%clk 0:02:49.1]} 14... Nxe4 {[%clk 0:02:29.6]} 15. Bxe4
{[%clk 0:02:50]} 15... Na5 {[%clk 0:02:21.6]} 16. Bf4 {[%clk 0:02:43.4]} 16...
Ba4 {[%clk 0:02:17.2]} 17. Rdc1 {[%clk 0:02:34.3]} 17... Bc6 {[%clk 0:02:14.2]}
18. Rd1 {[%clk 0:02:27.1]} 18... Bxe4 {[%clk 0:02:04.7]} 19. Qxe4 {[%clk
0:02:28]} 19... Nb3 {[%clk 0:01:53.8]} 20. Rab1 {[%clk 0:02:26.8]} 20... Qd5
{[%clk 0:01:54.4]} 21. Qxd5 {[%clk 0:02:25.6]} 21... exd5 {[%clk 0:01:55.3]} 22.
Ne5 {[%clk 0:02:23.4]} 22... Rc2 {[%clk 0:01:51.9]} 23. Rd3 {[%clk 0:02:22.4]}
23... Na5 {[%clk 0:01:45.6]} 24. b4 {[%clk 0:02:21.8]} 24... Nc4 {[%clk
0:01:42.4]} 25. Nxc4 {[%clk 0:02:21.7]} 25... Rxc4 {[%clk 0:01:38.7]} 26. Re3
{[%clk 0:02:16.4]} 26... Bf6 {[%clk 0:01:37.9]} 27. Be5 {[%clk 0:02:16.3]} 27...
Bxe5 {[%clk 0:01:29.8]} 28. dxe5 {[%clk 0:02:15.6]} 28... Re8 {[%clk 0:01:23.9]}
29. g3 {[%clk 0:02:03.4]} 29... g5 {[%clk 0:01:23.4]} 30. Rd1 {[%clk 0:02:01.4]}
30... d4 {[%clk 0:01:09.4]} 31. Re4 {[%clk 0:02:01.5]} 31... Rc3 {[%clk
0:01:09.7]} 32. Rexd4 {[%clk 0:01:57.4]} 32... Rxe5 {[%clk 0:00:56.3]} 33. R1d3
{[%clk 0:01:56.1]} 33... Rc1+ {[%clk 0:00:44.7]} 34. Kg2 {[%clk 0:01:55.6]}
34... Kg7 {[%clk 0:00:39.8]} 35. Rd7 {[%clk 0:01:53.8]} 35... g4 {[%clk
0:00:31.2]} 36. Rxb7 {[%clk 0:01:45.1]} 36... Ree1 {[%clk 0:00:30.7]} 37. f4
{[%clk 0:01:37]} 37... Re2# {[%clk 0:00:29.8]} 0-1

[Event "*** SCC Grand Prix: Titled Tuesday Blitz"]
[Site "Chess.com"]
[Date "2020.08.25"]
[Round "8"]
[White "ARTHURMOTIVATOR"]
[Black "Lenyas66"]
[Result "1-0"]
[WhiteElo "2287"]
[BlackElo "2443"]
[TimeControl "180+1"]
[EndTime "11:34:53 PDT"]
[Termination "ARTHURMOTIVATOR won by resignation"]

1. e4 {[%clk 0:03:00.8]} 1... c5 {[%clk 0:02:59.4]} 2. b3 {[%clk 0:02:59.8]}
2... Nc6 {[%clk 0:02:58.8]} 3. Bb2 {[%clk 0:02:59.6]} 3... Nf6 {[%clk
0:02:58.8]} 4. e5 {[%clk 0:02:58.5]} 4... Nd5 {[%clk 0:02:57.8]} 5. Nf3 {[%clk
0:02:57.8]} 5... e6 {[%clk 0:02:56.8]} 6. Nc3 {[%clk 0:02:39.6]} 6... Nxc3
{[%clk 0:02:52.5]} 7. dxc3 {[%clk 0:02:39.7]} 7... d5 {[%clk 0:02:44.2]} 8. exd6
{[%clk 0:02:37.5]} 8... Bxd6 {[%clk 0:02:38.2]} 9. c4 {[%clk 0:02:35]} 9... O-O
{[%clk 0:02:37.5]} 10. Bd3 {[%clk 0:02:28.6]} 10... e5 {[%clk 0:02:34.9]} 11.
Be4 {[%clk 0:02:18.6]} 11... Bg4 {[%clk 0:02:27.4]} 12. h3 {[%clk 0:02:14.4]}
12... Bh5 {[%clk 0:02:26.9]} 13. Qd3 {[%clk 0:01:46.6]} 13... Nb4 {[%clk
0:02:10]} 14. Bxh7+ {[%clk 0:01:06.2]} 14... Kh8 {[%clk 0:01:57.6]} 15. Qe4
{[%clk 0:01:06.4]} 15... g6 {[%clk 0:01:54.8]} 16. g4 {[%clk 0:01:04.6]} 16...
f5 {[%clk 0:01:46.6]} 17. Qe2 {[%clk 0:00:57.9]} 17... Kxh7 {[%clk 0:01:19.8]}
18. gxh5 {[%clk 0:00:56.7]} 18... gxh5 {[%clk 0:01:16.3]} 19. O-O-O {[%clk
0:00:53.9]} 19... e4 {[%clk 0:01:14.3]} 20. Rxd6 {[%clk 0:00:44.5]} 20... Qxd6
{[%clk 0:01:12.5]} 21. Ng5+ {[%clk 0:00:44]} 21... Kg6 {[%clk 0:01:12.7]} 22.
Rg1 {[%clk 0:00:43]} 22... Qf4+ {[%clk 0:01:10.5]} 23. Kb1 {[%clk 0:00:40.3]}
23... Kh6 {[%clk 0:01:10.4]} 24. Ne6 {[%clk 0:00:34.9]} 24... Qd6 {[%clk
0:01:08.7]} 25. Qe3+ {[%clk 0:00:31.4]} 25... f4 {[%clk 0:01:06.5]} 26. Bg7+
{[%clk 0:00:24.5]} 26... Kh7 {[%clk 0:01:05.6]} 27. Qxe4+ {[%clk 0:00:24.7]} 1-0

[Event "*** SCC Grand Prix: Titled Tuesday Blitz"]
[Site "Chess.com"]
[Date "2020.08.25"]
[Round "8"]
[White "KarpovVadim"]
[Black "milenapn"]
[Result "1-0"]
[WhiteElo "2318"]
[BlackElo "1980"]
[TimeControl "180+1"]
[EndTime "11:34:54 PDT"]
[Termination "KarpovVadim won on time"]

1. Nf3 {[%clk 0:03:00.9]} 1... Nf6 {[%clk 0:02:55.7]} 2. d4 {[%clk 0:03:00]}
2... g6 {[%clk 0:02:55.2]} 3. c3 {[%clk 0:02:59.8]} 3... Bg7 {[%clk 0:02:54]} 4.
Bg5 {[%clk 0:03:00]} 4... O-O {[%clk 0:02:53.1]} 5. e3 {[%clk 0:02:59.8]} 5...
d6 {[%clk 0:02:53.2]} 6. Nbd2 {[%clk 0:03:00]} 6... c5 {[%clk 0:02:47.1]} 7. Bc4
{[%clk 0:02:59.3]} 7... Nc6 {[%clk 0:02:41.4]} 8. O-O {[%clk 0:02:58]} 8... b6
{[%clk 0:02:28.3]} 9. Re1 {[%clk 0:02:56.4]} 9... d5 {[%clk 0:02:25.5]} 10. Bf1
{[%clk 0:02:54.1]} 10... Bb7 {[%clk 0:02:24.2]} 11. a4 {[%clk 0:02:53]} 11...
Qc7 {[%clk 0:02:20.8]} 12. Bf4 {[%clk 0:02:51.4]} 12... Qd7 {[%clk 0:02:17.1]}
13. h3 {[%clk 0:02:51.4]} 13... Rfe8 {[%clk 0:02:13.5]} 14. Qb3 {[%clk
0:02:49.5]} 14... Ne4 {[%clk 0:01:34.6]} 15. Red1 {[%clk 0:02:42.8]} 15... Qf5
{[%clk 0:00:27.9]} 16. Qa3 {[%clk 0:02:18.6]} 16... cxd4 {[%clk 0:00:24.2]} 17.
cxd4 {[%clk 0:02:10]} 17... e5 {[%clk 0:00:07.2]} 18. dxe5 {[%clk 0:02:04.9]}
18... Nxe5 {[%clk 0:00:07.3]} 19. Nxe5 {[%clk 0:02:02.1]} 19... Bxe5 {[%clk
0:00:07.3]} 20. Nxe4 {[%clk 0:01:50.5]} 20... dxe4 {[%clk 0:00:05.9]} 21. Bxe5
{[%clk 0:01:48.5]} 21... Qxe5 {[%clk 0:00:06.5]} 22. Rd7 {[%clk 0:01:44.6]}
22... Bc6 {[%clk 0:00:06.6]} 23. Rd6 {[%clk 0:01:43.1]} 23... Bb7 {[%clk
0:00:05]} 24. Rad1 {[%clk 0:01:42.9]} 24... Rac8 {[%clk 0:00:03.2]} 25. Bb5
{[%clk 0:01:37.5]} 25... Re7 {[%clk 0:00:01]} 26. h4 {[%clk 0:01:27.3]} 1-0

[Event "*** SCC Grand Prix: Titled Tuesday Blitz"]
[Site "Chess.com"]
[Date "2020.08.25"]
[Round "8"]
[White "BigAl"]
[Black "tdf98pantani"]
[Result "1-0"]
[WhiteElo "2488"]
[BlackElo "2639"]
[TimeControl "180+1"]
[EndTime "11:34:57 PDT"]
[Termination "BigAl won on time"]

1. e4 {[%clk 0:03:00.9]} 1... e5 {[%clk 0:02:57.7]} 2. Bc4 {[%clk 0:03:00.3]}
2... Nf6 {[%clk 0:02:57.2]} 3. d3 {[%clk 0:03:00.8]} 3... c6 {[%clk 0:02:52.5]}
4. Nf3 {[%clk 0:03:00.8]} 4... Be7 {[%clk 0:02:52.3]} 5. Nbd2 {[%clk 0:02:54]}
5... d6 {[%clk 0:02:49.5]} 6. a4 {[%clk 0:02:51.7]} 6... O-O {[%clk 0:02:49.3]}
7. a5 {[%clk 0:02:50.3]} 7... h6 {[%clk 0:02:43.3]} 8. O-O {[%clk 0:02:48.3]}
8... Kh8 {[%clk 0:02:38.6]} 9. Re1 {[%clk 0:02:41.1]} 9... Na6 {[%clk
0:02:27.8]} 10. Ba2 {[%clk 0:02:28.8]} 10... Nb4 {[%clk 0:02:16.1]} 11. Bb3
{[%clk 0:02:27.5]} 11... Be6 {[%clk 0:02:06.4]} 12. Bxe6 {[%clk 0:02:11]} 12...
fxe6 {[%clk 0:02:06.5]} 13. d4 {[%clk 0:02:11.4]} 13... exd4 {[%clk 0:02:02.9]}
14. Nxd4 {[%clk 0:02:11.6]} 14... Qd7 {[%clk 0:01:59.9]} 15. N2f3 {[%clk
0:02:01]} 15... c5 {[%clk 0:01:52.7]} 16. Nb3 {[%clk 0:02:00.6]} 16... e5 {[%clk
0:01:42.7]} 17. c3 {[%clk 0:01:51]} 17... Nc6 {[%clk 0:01:42.7]} 18. Nh4 {[%clk
0:01:50.5]} 18... Kh7 {[%clk 0:01:38.4]} 19. Nf5 {[%clk 0:01:44.5]} 19... Rad8
{[%clk 0:01:29.6]} 20. Qc2 {[%clk 0:01:39.5]} 20... Ng8 {[%clk 0:01:25.8]} 21.
f3 {[%clk 0:01:29.3]} 21... g6 {[%clk 0:01:24.5]} 22. Ne3 {[%clk 0:01:29.4]}
22... Bg5 {[%clk 0:01:23]} 23. Nd5 {[%clk 0:01:28.1]} 23... Bxc1 {[%clk
0:01:23]} 24. Raxc1 {[%clk 0:01:28.7]} 24... Nf6 {[%clk 0:01:21.9]} 25. Rcd1
{[%clk 0:01:23.8]} 1-0

[Event "*** SCC Grand Prix: Titled Tuesday Blitz"]
[Site "Chess.com"]
[Date "2020.08.25"]
[Round "8"]
[White "JoliyRoger"]
[Black "isainz"]
[Result "1-0"]
[WhiteElo "2370"]
[BlackElo "2130"]
[TimeControl "180+1"]
[EndTime "11:35:02 PDT"]
[Termination "JoliyRoger won by resignation"]

1. Nf3 {[%clk 0:03:00.9]} 1... Nf6 {[%clk 0:02:57.8]} 2. c4 {[%clk 0:03:00.5]}
2... g6 {[%clk 0:02:57.9]} 3. Nc3 {[%clk 0:03:00.9]} 3... Bg7 {[%clk 0:02:58]}
4. e4 {[%clk 0:03:01.4]} 4... d6 {[%clk 0:02:58.4]} 5. d4 {[%clk 0:03:01.9]}
5... O-O {[%clk 0:02:58.4]} 6. h3 {[%clk 0:03:02.4]} 6... e5 {[%clk 0:02:29.4]}
7. d5 {[%clk 0:03:00.3]} 7... a5 {[%clk 0:02:26.4]} 8. Bg5 {[%clk 0:03:00.4]}
8... Na6 {[%clk 0:02:22.1]} 9. Be2 {[%clk 0:02:58.8]} 9... Qe8 {[%clk
0:02:18.5]} 10. g4 {[%clk 0:02:58]} 10... Nd7 {[%clk 0:02:15]} 11. Rg1 {[%clk
0:02:52.7]} 11... Ndc5 {[%clk 0:01:57.6]} 12. h4 {[%clk 0:02:47.3]} 12... Bd7
{[%clk 0:01:54.5]} 13. h5 {[%clk 0:02:46.9]} 13... f6 {[%clk 0:01:49.8]} 14. Be3
{[%clk 0:02:42.4]} 14... g5 {[%clk 0:01:48.7]} 15. Nd2 {[%clk 0:02:33.8]} 15...
a4 {[%clk 0:01:40.5]} 16. Ndb1 {[%clk 0:02:29.6]} 16... Qe7 {[%clk 0:01:26.3]}
17. Na3 {[%clk 0:02:28.6]} 17... Rfd8 {[%clk 0:01:16.4]} 18. f3 {[%clk
0:02:28.1]} 18... Rab8 {[%clk 0:01:10.9]} 19. Kf2 {[%clk 0:02:27.7]} 19... Be8
{[%clk 0:01:06.3]} 20. Rb1 {[%clk 0:02:22.4]} 20... Ra8 {[%clk 0:01:02.4]} 21.
Qd2 {[%clk 0:02:18.2]} 21... Bf7 {[%clk 0:00:56]} 22. Nc2 {[%clk 0:02:10.5]}
22... c6 {[%clk 0:00:51.2]} 23. b4 {[%clk 0:02:04.3]} 23... axb3 {[%clk
0:00:47.8]} 24. axb3 {[%clk 0:02:04.8]} 24... Nc7 {[%clk 0:00:35.4]} 25. b4
{[%clk 0:02:00.8]} 25... Na4 {[%clk 0:00:33]} 26. Nxa4 {[%clk 0:02:00.8]} 26...
Rxa4 {[%clk 0:00:31.5]} 27. Ra1 {[%clk 0:01:54.7]} 27... Rda8 {[%clk 0:00:30.3]}
28. Qc3 {[%clk 0:01:54.5]} 28... cxd5 {[%clk 0:00:29.3]} 29. cxd5 {[%clk
0:01:53.7]} 29... Qd7 {[%clk 0:00:23.2]} 30. Rxa4 {[%clk 0:01:43.5]} 30... Rxa4
{[%clk 0:00:21.5]} 31. Ra1 {[%clk 0:01:41.8]} 31... Na6 {[%clk 0:00:19.2]} 32.
b5 {[%clk 0:01:35.9]} 32... Rxa1 {[%clk 0:00:15.7]} 33. Qxa1 {[%clk 0:01:33.6]}
33... Nc7 {[%clk 0:00:15.5]} 34. b6 {[%clk 0:01:29]} 34... Na6 {[%clk
0:00:14.2]} 35. Bxa6 {[%clk 0:01:27.1]} 35... bxa6 {[%clk 0:00:14.6]} 36. Qxa6
{[%clk 0:01:27.6]} 1-0

[Event "*** SCC Grand Prix: Titled Tuesday Blitz"]
[Site "Chess.com"]
[Date "2020.08.25"]
[Round "8"]
[White "arminmusovic"]
[Black "elohunter1999"]
[Result "0-1"]
[WhiteElo "2572"]
[BlackElo "2469"]
[TimeControl "180+1"]
[EndTime "11:35:09 PDT"]
[Termination "elohunter1999 won by resignation"]

1. a3 {[%clk 0:03:00.9]} 1... g6 {[%clk 0:02:56.2]} 2. Nc3 {[%clk 0:03:01.8]}
2... Bg7 {[%clk 0:02:56.4]} 3. e4 {[%clk 0:03:02.5]} 3... d6 {[%clk 0:02:55.3]}
4. d4 {[%clk 0:03:02.6]} 4... Nf6 {[%clk 0:02:55.4]} 5. Bg5 {[%clk 0:03:02.8]}
5... c6 {[%clk 0:02:54.8]} 6. f4 {[%clk 0:03:03.1]} 6... Qb6 {[%clk 0:02:54.4]}
7. Nf3 {[%clk 0:03:02.5]} 7... d5 {[%clk 0:02:51.8]} 8. Bxf6 {[%clk 0:02:59.2]}
8... Bxf6 {[%clk 0:02:50.4]} 9. e5 {[%clk 0:02:17.5]} 9... Bg7 {[%clk
0:02:50.3]} 10. h3 {[%clk 0:02:05.6]} 10... Bf5 {[%clk 0:02:39.5]} 11. Bd3
{[%clk 0:01:59.6]} 11... Bxd3 {[%clk 0:02:35.9]} 12. Qxd3 {[%clk 0:02:00.5]}
12... e6 {[%clk 0:02:30.8]} 13. O-O {[%clk 0:01:57]} 13... Nd7 {[%clk
0:02:29.5]} 14. Kh1 {[%clk 0:01:47.9]} 14... c5 {[%clk 0:02:26.4]} 15. Nb5
{[%clk 0:01:29.3]} 15... c4 {[%clk 0:02:20.4]} 16. Nd6+ {[%clk 0:01:05.3]} 16...
Qxd6 {[%clk 0:02:18.6]} 17. exd6 {[%clk 0:01:05.5]} 17... cxd3 {[%clk
0:02:18.6]} 18. cxd3 {[%clk 0:01:06.4]} 18... Bf8 {[%clk 0:02:15.3]} 19. Rae1
{[%clk 0:01:00.3]} 19... Bxd6 {[%clk 0:02:15.1]} 20. f5 {[%clk 0:00:51.8]} 20...
gxf5 {[%clk 0:02:10.8]} 21. Ng5 {[%clk 0:00:51.5]} 21... O-O {[%clk 0:02:06.4]}
22. g4 {[%clk 0:00:42.5]} 22... fxg4 {[%clk 0:02:00.7]} 23. hxg4 {[%clk
0:00:28.7]} 23... h6 {[%clk 0:02:00.3]} 24. Nf3 {[%clk 0:00:20.3]} 24... Kh7
{[%clk 0:01:56.8]} 25. g5 {[%clk 0:00:19.7]} 25... Rg8 {[%clk 0:01:54.6]} 26.
Re2 {[%clk 0:00:17.6]} 26... hxg5 {[%clk 0:01:49.3]} 27. Ne5 {[%clk 0:00:18.1]}
27... Bxe5 {[%clk 0:01:44.5]} 28. Rxf7+ {[%clk 0:00:16.6]} 28... Rg7 {[%clk
0:01:43.9]} 29. Rf3 {[%clk 0:00:08.8]} 29... Bxd4 {[%clk 0:01:39.2]} 30. Rxe6
{[%clk 0:00:06.2]} 30... Nf6 {[%clk 0:01:37.5]} 31. Rh3+ {[%clk 0:00:05.4]}
31... Kg6 {[%clk 0:01:36.8]} 32. Rf3 {[%clk 0:00:02.9]} 32... Rc8 {[%clk
0:01:32.5]} 33. Kg2 {[%clk 0:00:02.8]} 33... Rc2+ {[%clk 0:01:30.6]} 34. Kf1
{[%clk 0:00:03.7]} 34... Rh7 {[%clk 0:01:30.2]} 35. Rg3 {[%clk 0:00:02.1]} 0-1

[Event "*** SCC Grand Prix: Titled Tuesday Blitz"]
[Site "Chess.com"]
[Date "2020.08.25"]
[Round "8"]
[White "ChessBitl"]
[Black "topotun"]
[Result "0-1"]
[WhiteElo "2514"]
[BlackElo "2719"]
[TimeControl "180+1"]
[EndTime "11:35:11 PDT"]
[Termination "topotun won by resignation"]

1. e4 {[%clk 0:02:59.8]} 1... c6 {[%clk 0:03:00.2]} 2. Nc3 {[%clk 0:02:58.1]}
2... d5 {[%clk 0:03:01.1]} 3. Nf3 {[%clk 0:02:58.2]} 3... Nf6 {[%clk 0:02:59.3]}
4. d3 {[%clk 0:02:54.9]} 4... Bg4 {[%clk 0:02:56.1]} 5. h3 {[%clk 0:02:54.2]}
5... Bxf3 {[%clk 0:02:45.3]} 6. Qxf3 {[%clk 0:02:53.3]} 6... e6 {[%clk
0:02:45.6]} 7. g4 {[%clk 0:02:51.6]} 7... Bb4 {[%clk 0:02:40.3]} 8. Bd2 {[%clk
0:02:50.5]} 8... d4 {[%clk 0:02:39.5]} 9. Nb1 {[%clk 0:02:49.6]} 9... Qb6 {[%clk
0:02:39]} 10. g5 {[%clk 0:02:38.8]} 10... Nfd7 {[%clk 0:02:38.1]} 11. a3 {[%clk
0:02:31]} 11... Bxd2+ {[%clk 0:02:06.7]} 12. Nxd2 {[%clk 0:02:31.9]} 12... Qxb2
{[%clk 0:02:07]} 13. Rb1 {[%clk 0:02:32.1]} 13... Qxc2 {[%clk 0:02:07.1]} 14.
Rxb7 {[%clk 0:02:18.6]} 14... O-O {[%clk 0:02:06.3]} 15. Be2 {[%clk 0:01:52.1]}
15... Nc5 {[%clk 0:01:53.9]} 16. Rb1 {[%clk 0:01:46.8]} 16... Nbd7 {[%clk
0:01:50.9]} 17. Qg3 {[%clk 0:01:22.9]} 17... Rab8 {[%clk 0:01:46.2]} 18. Rb4
{[%clk 0:01:15.2]} 18... Qc3 {[%clk 0:01:02.3]} 19. Rc4 {[%clk 0:01:09.1]} 19...
Qa5 {[%clk 0:00:28.4]} 20. Qd6 {[%clk 0:00:58.9]} 20... Rb2 {[%clk 0:00:23.9]}
21. Rb4 {[%clk 0:00:55.1]} 21... Qxa3 {[%clk 0:00:20.9]} 22. Rxb2 {[%clk
0:00:49.4]} 22... Nxd3+ {[%clk 0:00:21.2]} 23. Bxd3 {[%clk 0:00:45.9]} 23...
Qxd6 {[%clk 0:00:22.1]} 0-1

[Event "*** SCC Grand Prix: Titled Tuesday Blitz"]
[Site "Chess.com"]
[Date "2020.08.25"]
[Round "8"]
[White "stepanosinovsky"]
[Black "Noam_Vitenberg"]
[Result "0-1"]
[WhiteElo "2367"]
[BlackElo "2516"]
[TimeControl "180+1"]
[EndTime "11:35:11 PDT"]
[Termination "Noam_Vitenberg won on time"]

1. e4 {[%clk 0:03:00.9]} 1... e5 {[%clk 0:02:59.7]} 2. Nf3 {[%clk 0:03:00.8]}
2... Nc6 {[%clk 0:03:00.2]} 3. Bb5 {[%clk 0:03:01]} 3... a6 {[%clk 0:02:59.7]}
4. Ba4 {[%clk 0:03:01.4]} 4... Nf6 {[%clk 0:02:59.7]} 5. O-O {[%clk 0:03:01.8]}
5... Be7 {[%clk 0:03:00.2]} 6. Re1 {[%clk 0:03:01.5]} 6... b5 {[%clk 0:03:00.4]}
7. Bb3 {[%clk 0:03:02.1]} 7... O-O {[%clk 0:03:01]} 8. Nc3 {[%clk 0:03:01.2]}
8... Bb7 {[%clk 0:03:00.7]} 9. a4 {[%clk 0:02:58.1]} 9... b4 {[%clk 0:02:54.7]}
10. Nd5 {[%clk 0:02:57.7]} 10... Na5 {[%clk 0:02:53.7]} 11. Ba2 {[%clk
0:02:37.2]} 11... Nxd5 {[%clk 0:02:42.5]} 12. exd5 {[%clk 0:02:27.9]} 12... d6
{[%clk 0:02:36.1]} 13. c4 {[%clk 0:02:08.8]} 13... f5 {[%clk 0:02:19.3]} 14. d4
{[%clk 0:01:41.2]} 14... e4 {[%clk 0:02:18.5]} 15. Nd2 {[%clk 0:01:39.7]} 15...
Bf6 {[%clk 0:02:14.8]} 16. Nf1 {[%clk 0:01:35.6]} 16... c5 {[%clk 0:02:07.1]}
17. dxc6 {[%clk 0:00:59.5]} 17... Nxc6 {[%clk 0:02:06.3]} 18. Be3 {[%clk
0:00:50.3]} 18... g5 {[%clk 0:02:06.2]} 19. c5+ {[%clk 0:00:32.3]} 19... d5
{[%clk 0:02:06]} 20. f4 {[%clk 0:00:19.7]} 20... gxf4 {[%clk 0:02:04.8]} 21.
Bxf4 {[%clk 0:00:19.4]} 21... Bxd4+ {[%clk 0:02:00.1]} 22. Be3 {[%clk
0:00:18.7]} 22... Bxe3+ {[%clk 0:01:55.6]} 23. Nxe3 {[%clk 0:00:19.6]} 23... Ne7
{[%clk 0:01:55.9]} 24. Qd4 {[%clk 0:00:17.3]} 24... Qd7 {[%clk 0:01:48.9]} 25.
Rad1 {[%clk 0:00:14.1]} 25... Rad8 {[%clk 0:01:49.3]} 26. Bb3 {[%clk 0:00:13]}
26... Rf7 {[%clk 0:01:44.1]} 27. h3 {[%clk 0:00:10.3]} 27... f4 {[%clk
0:01:44.2]} 28. Ng4 {[%clk 0:00:08.9]} 28... Nf5 {[%clk 0:01:41.6]} 29. Nf6+
{[%clk 0:00:08.4]} 29... Kh8 {[%clk 0:01:36.3]} 30. Qe5 {[%clk 0:00:06]} 30...
Qe7 {[%clk 0:01:31.8]} 31. Qxe7 {[%clk 0:00:01.8]} 31... Nxe7 {[%clk 0:01:30.1]}
32. Nxe4 {[%clk 0:00:01.1]} 32... Nf5 {[%clk 0:01:25.5]} 0-1